bitfinex-derivatives/quotes_BTCF0:USTF0_20250809
["timestamp","ask_amount","ask_price","bid_price","bid_amount"]
[1754731997866,0.0036,117430.0,117420.0,2.24275524]
[1754732002674,0.9389833,117450.0,117440.0,0.1742538]
[1754732002874,0.9389833,117450.0,117440.0,1.2690226]
[1754732002875,0.95777446,117450.0,117440.0,1.2690226]
[1754732003169,0.9429833,117450.0,117440.0,1.2690226]
[1754732003972,0.8578557,117450.0,117440.0,1.2690226]
[1754732004470,0.43072228,117450.0,117440.0,1.2690226]
[1754732004662,0.17218348,117450.0,117440.0,1.8883614]
[1754732005863,0.17318348,117450.0,117440.0,1.8883614]
[1754732006869,0.43172228,117450.0,117440.0,1.2700226]
[1754732007273,0.43172228,117450.0,117440.0,1.6308226]
[1754732007470,0.11513348,117450.0,117440.0,1.6308226]
[1754732007776,0.11413348,117450.0,117440.0,1.8893614]
[1754732007980,0.37267228,117450.0,117440.0,1.8893614]
[1754732008168,0.11413348,117450.0,117440.0,1.90796537]
[1754732008477,0.40511228,117450.0,117440.0,1.64942657]
[1754732008773,0.43072228,117450.0,117440.0,1.64942657]
[1754732009874,0.43072228,117450.0,117440.0,1.28862657]
[1754732010575,0.43072228,117450.0,117440.0,1.03008777]
[1754732010873,0.37267228,117450.0,117440.0,1.28862657]
[1754732011062,0.43072228,117450.0,117440.0,1.28862657]
[1754732011378,0.4119288,117450.0,117440.0,1.28862657]
[1754732011577,0.43071864,117450.0,117440.0,1.28862657]
[1754732011877,0.51584514,117450.0,117440.0,1.28862657]
[1754732012879,0.25730634,117450.0,117440.0,1.28862657]
[1754732013177,0.51584514,117450.0,117440.0,1.28862657]
[1754732013377,0.51584514,117450.0,117440.0,1.28762657]
[1754732013574,0.43071864,117450.0,117440.0,1.28762657]
[1754732013776,0.51584514,117450.0,117440.0,1.28762657]
[1754732014379,0.4970553,117450.0,117440.0,1.28762657]
[1754732018889,0.4930553,117450.0,117440.0,1.28762657]
[1754732022597,0.9641252,117460.0,117440.0,1.40423927]
[1754732022804,1.0232552,117460.0,117450.0,0.4854653]
[1754732023092,1.281794,117460.0,117450.0,0.4854653]
[1754732023297,0.9381327,117460.0,117450.0,0.4854653]
[1754732023797,0.9401327,117460.0,117450.0,0.4854653]
[1754732023995,0.9440327,117460.0,117450.0,0.4854653]
[1754732024596,0.9420327,117460.0,117450.0,0.4854653]
[1754732025899,0.6834939,117460.0,117450.0,0.4854653]
[1754732026196,0.9420327,117460.0,117450.0,0.4854653]
[1754732026990,0.6834939,117460.0,117450.0,0.4854653]
[1754732027195,0.9420327,117460.0,117450.0,0.4854653]
[1754732027397,0.9420327,117460.0,117450.0,1.2657453]
[1754732028498,1.2005715,117460.0,117450.0,1.2657453]
[1754732029996,0.6834939,117460.0,117450.0,1.2657453]
[1754732030302,1.2005715,117460.0,117450.0,1.2657453]
[1754732031003,0.8569102,117460.0,117450.0,1.2657453]
[1754732031193,0.5983714,117460.0,117450.0,1.2657453]
[1754732031394,0.8569102,117460.0,117450.0,1.2657453]
[1754732032702,0.8569102,117460.0,117450.0,1.0072065]
[1754732032903,1.115449,117460.0,117450.0,1.2657453]
[1754732034805,1.115449,117460.0,117450.0,1.0072065]
[1754732035104,0.5983714,117460.0,117450.0,1.2657453]
[1754732035306,1.115449,117460.0,117450.0,1.2657453]
[1754732035605,0.8569102,117460.0,117450.0,1.2657453]
[1754732036403,1.115449,117460.0,117450.0,1.2657453]
[1754732038506,1.115449,117460.0,117450.0,1.0072065]
[1754732038700,0.8569102,117460.0,117450.0,1.2657453]
[1754732038894,1.2857009,117460.0,117440.0,0.54966667]
[1754732039099,0.4922153,117450.0,117440.0,0.72967007]
[1754732039299,0.4070888,117450.0,117440.0,1.50983007]
[1754732039500,0.4070888,117450.0,117440.0,1.53963007]
[1754732039801,0.14855,117450.0,117440.0,1.53963007]
[1754732040007,0.4070888,117450.0,117440.0,2.15896887]
[1754732040201,0.14855,117450.0,117440.0,1.79816887]
[1754732040406,0.4070888,117450.0,117440.0,2.15896887]
[1754732040598,0.4070888,117450.0,117440.0,1.64189127]
[1754732040795,0.4070888,117450.0,117440.0,2.15896887]
[1754732041000,0.14855,117450.0,117440.0,2.15896887]
[1754732041202,0.4070888,117450.0,117440.0,2.15896887]
[1754732042303,0.4070888,117450.0,117440.0,1.64189127]
[1754732042508,0.4932154,117450.0,117440.0,1.79816887]
[1754732043103,0.4080888,117450.0,117440.0,2.15896887]
[1754732043597,0.4070888,117450.0,117440.0,2.15896887]
[1754732044003,0.14855,117450.0,117440.0,2.15896887]
[1754732044210,0.4070888,117450.0,117440.0,2.15896887]
[1754732044807,0.14855,117450.0,117440.0,2.15896887]
[1754732045608,0.14955,117450.0,117440.0,2.15896887]
[1754732046503,0.12493,117450.0,117440.0,2.15896887]
[1754732046906,0.12393,117450.0,117440.0,2.15896887]
[1754732048807,0.12493,117450.0,117440.0,2.15896887]
[1754732049809,0.12493,117450.0,117440.0,1.79816887]
[1754732050010,0.15079,117450.0,117440.0,1.79816887]
[1754732050317,0.15079,117450.0,117440.0,2.15896887]
[1754732050714,0.1696142,117450.0,117440.0,2.15896887]
[1754732051018,0.15079,117450.0,117440.0,2.15896887]
[1754732051214,0.16961425,117450.0,117440.0,2.15896887]
[1754732051705,0.42815305,117450.0,117440.0,2.15896887]
[1754732051905,0.42715305,117450.0,117440.0,2.15896887]
[1754732052108,0.42715305,117450.0,117440.0,1.79816887]
[1754732052315,0.16861425,117450.0,117440.0,1.79816887]
[1754732053617,0.4083288,117450.0,117440.0,1.79816887]
[1754732055817,0.14979,117450.0,117440.0,1.79816887]
[1754732056015,0.4083288,117450.0,117440.0,1.79816887]
[1754732057811,0.4083288,117450.0,117440.0,2.15896887]
[1754732058413,0.4083288,117450.0,117440.0,1.79816887]
[1754732058615,0.4083288,117450.0,117440.0,2.15896887]
[1754732059221,0.4083288,117450.0,117440.0,1.79816887]
[1754732060119,0.4083288,117450.0,117440.0,1.53963007]
[1754732060320,0.4083288,117450.0,117440.0,1.28109127]
[1754732060619,0.4934554,117450.0,117440.0,1.53963007]
[1754732060816,0.4083288,117450.0,117440.0,1.79816887]
[1754732061120,0.14979,117450.0,117440.0,1.79816887]
[1754732061320,0.4083288,117450.0,117440.0,1.79816887]
[1754732061519,0.4083288,117450.0,117440.0,1.53963007]
[1754732063016,0.14979,117450.0,117440.0,1.53963007]
[1754732063218,0.4083288,117450.0,117440.0,1.90043007]
[1754732063618,0.4083288,117450.0,117440.0,1.53963007]
[1754732063824,0.4083288,117450.0,117440.0,1.79816887]
[1754732064022,0.4083288,117450.0,117440.0,2.15896887]
[1754732064218,0.4083288,117450.0,117440.0,1.79816887]
[1754732067425,0.4934554,117450.0,117440.0,1.79816887]
[1754732068620,0.4083288,117450.0,117440.0,1.79816887]
[1754732068828,0.4934554,117450.0,117440.0,1.79816887]
[1754732069229,0.2349166,117450.0,117440.0,1.79816887]
[1754732069528,0.4934554,117450.0,117440.0,1.79816887]
[1754732070126,0.4934554,117450.0,117440.0,1.53963007]
[1754732072025,0.4934554,117450.0,117440.0,1.28109127]
[1754732072224,0.4934554,117450.0,117440.0,1.53963007]
[1754732074029,0.4934554,117450.0,117440.0,1.28109127]
[1754732074232,0.4934554,117450.0,117440.0,1.53963007]
[1754732074438,0.4083288,117450.0,117440.0,1.53963007]
[1754732074724,0.14979,117450.0,117440.0,1.79816887]
[1754732074932,0.4083288,117450.0,117440.0,1.79816887]
[1754732076137,0.0673,117450.0,117440.0,1.79816887]
[1754732076328,0.2888788,117450.0,117440.0,1.53963007]
[1754732076628,0.2888788,117450.0,117440.0,1.79816887]
[1754732076831,0.2898788,117450.0,117440.0,1.79916887]
[1754732077219,0.2898788,117450.0,117440.0,1.28209127]
[1754732077433,0.2898788,117450.0,117440.0,1.79916887]
[1754732078132,0.2888788,117450.0,117440.0,1.79916887]
[1754732079031,0.03034,117450.0,117440.0,1.79916887]
[1754732080333,0.3804188,117450.0,117440.0,1.79916887]
[1754732081933,0.4030088,117450.0,117440.0,1.79916887]
[1754732084734,0.2888788,117450.0,117440.0,1.79916887]
[1754732086635,0.03034,117450.0,117440.0,1.79916887]
[1754732087838,0.4881354,117450.0,117440.0,1.28209127]
[1754732088038,0.4881354,117450.0,117440.0,1.79916887]
[1754732088539,0.4881354,117450.0,117440.0,1.54023007]
[1754732089739,0.4881354,117450.0,117440.0,1.53923007]
[1754732091242,0.8489354,117450.0,117440.0,1.19555747]
[1754732091841,0.8489354,117450.0,117440.0,1.45409627]
[1754732092041,1.1074742,117450.0,117440.0,1.0413797]
[1754732092340,0.8489354,117450.0,117440.0,1.0413797]
[1754732092839,0.8489354,117450.0,117440.0,1.0599397]
[1754732094040,0.86780424,117450.0,117440.0,1.0599397]
[1754732094635,0.86780424,117450.0,117440.0,1.0094497]
[1754732094836,1.22144596,117450.0,117440.0,0.1702597]
[1754732095543,1.22144596,117450.0,117440.0,0.0851289]
[1754732096045,0.96290716,117450.0,117440.0,0.0851289]
[1754732096343,1.22144596,117450.0,117440.0,0.0851289]
[1754732098433,0.2289237,117440.0,117430.0,0.7092956]
[1754732098635,0.86713134,117440.0,117430.0,0.7092956]
[1754732098837,0.86713134,117440.0,117430.0,0.7393356]
[1754732100046,0.86713134,117440.0,117430.0,0.7403356]
[1754732102146,1.12567014,117440.0,117430.0,0.5335164]
[1754732102341,1.12567014,117440.0,117430.0,0.6251564]
[1754732103651,1.1068013,117440.0,117430.0,0.1963392]
[1754732103849,1.1068013,117440.0,117430.0,0.454878]
[1754732104047,1.1068013,117440.0,117430.0,0.09264]
[1754732104251,0.2554638,117420.0,117410.0,0.0851552]
[1754732104547,1.3635657,117420.0,117410.0,0.0851552]
[1754732104746,1.3932257,117420.0,117410.0,0.453894]
[1754732105345,1.1927669,117420.0,117410.0,0.46275063]
[1754732105538,0.8319669,117420.0,117410.0,0.46275063]
[1754732105745,0.8319669,117420.0,117410.0,0.46475063]
[1754732105943,1.1927669,117420.0,117410.0,0.46475063]
[1754732106146,1.1927669,117420.0,117410.0,0.46775063]
[1754732106551,1.4513057,117420.0,117410.0,0.46775063]
[1754732106944,1.0905057,117420.0,117410.0,0.46775063]
[1754732107748,1.4513057,117420.0,117410.0,0.46775063]
[1754732107947,1.0905057,117420.0,117410.0,0.20921183]
[1754732108346,1.4513057,117420.0,117410.0,0.20921183]
[1754732110360,0.9342281,117420.0,117410.0,0.20921183]
[1754732110559,1.4513057,117420.0,117410.0,0.20921183]
[1754732110753,1.1927669,117420.0,117410.0,0.20921183]
[1754732110958,1.4513057,117420.0,117410.0,0.20921183]
[1754732111361,0.9342281,117420.0,117410.0,0.20921183]
[1754732111564,0.9163314,117420.0,117410.0,0.20610183]
[1754732111758,0.9163314,117420.0,117410.0,0.46464063]
[1754732111958,0.9163314,117420.0,117410.0,0.49409063]
[1754732112762,0.6577926,117420.0,117410.0,0.49409063]
[1754732112956,0.5140026,117420.0,117410.0,0.20610183]
[1754732113160,0.935703,117430.0,117420.0,0.1922382]
[1754732113355,0.935703,117430.0,117420.0,1.259787]
[1754732114158,0.935703,117430.0,117420.0,1.230337]
[1754732115163,0.935703,117430.0,117420.0,1.232337]
[1754732115363,0.8505604,117430.0,117420.0,1.3012314]
[1754732115662,0.8505604,117430.0,117420.0,1.3022314]
[1754732115860,0.8505604,117430.0,117420.0,1.32092513]
[1754732116065,0.8505604,117430.0,117420.0,1.06238633]
[1754732118062,0.8505604,117430.0,117420.0,1.0436926]
[1754732120363,0.4897604,117430.0,117420.0,1.0436926]
[1754732120665,0.8505604,117430.0,117420.0,1.0436926]
[1754732121667,0.5920216,117430.0,117420.0,1.0436926]
[1754732121863,1.1090992,117430.0,117420.0,0.2140626]
[1754732122078,1.20206508,117430.0,117420.0,1.0256026]
[1754732122558,0.94352628,117430.0,117420.0,1.0256026]
[1754732123866,0.94352628,117430.0,117420.0,0.2460426]
[1754732125166,0.94352628,117430.0,117420.0,0.1570426]
[1754732125668,1.20206508,117430.0,117420.0,0.1570426]
[1754732127061,1.20206508,117430.0,117420.0,0.0718944]
[1754732127369,1.20206508,117430.0,117420.0,0.1570426]
[1754732128369,1.20206508,117430.0,117420.0,0.0881482]
[1754732130458,1.20206508,117430.0,117420.0,0.07251413]
[1754732131368,1.20206508,117430.0,117420.0,0.15766233]
[1754732132964,1.46060388,117430.0,117420.0,0.003]
[1754732133167,1.48317314,117430.0,117420.0,0.003]
[1754732133368,1.22463434,117430.0,117420.0,0.003]
[1754732134468,1.22463434,117430.0,117420.0,0.001]
[1754732134673,0.1081282,117420.0,117410.0,0.1703059]
[1754732134869,1.8886658,117420.0,117410.0,0.1703059]
[1754732135172,1.97830591,117420.0,117410.0,0.1703059]
[1754732136563,1.97930591,117420.0,117410.0,0.1703059]
[1754732136764,1.97930591,117420.0,117410.0,0.17922768]
[1754732136967,1.97930591,117420.0,117410.0,0.1703059]
[1754732137370,0.2298655,117410.0,117400.0,0.3460845]
[1754732137571,0.2298655,117410.0,117400.0,0.3633145]
[1754732137572,0.4884043,117410.0,117400.0,0.3633145]
[1754732137775,0.4884043,117410.0,117400.0,0.3460845]
[1754732138072,0.4884043,117410.0,117400.0,0.3633145]
[1754732138273,0.8492043,117410.0,117400.0,0.3633145]
[1754732139675,0.8492043,117410.0,117400.0,0.37909396]
[1754732140280,1.19670307,117410.0,117400.0,0.37909396]
[1754732140479,0.93816427,117410.0,117400.0,0.27126396]
[1754732140776,0.93816427,117410.0,117400.0,0.18610246]
[1754732141574,0.93816427,117410.0,117400.0,0.22046246]
[1754732142581,0.93816427,117410.0,117400.0,0.29496246]
[1754732143884,0.67962547,117410.0,117400.0,0.29496246]
[1754732144183,0.93816427,117410.0,117400.0,0.29496246]
[1754732146183,0.67962547,117410.0,117400.0,0.29496246]
[1754732146385,0.93816427,117410.0,117400.0,0.29496246]
[1754732148688,0.67962547,117410.0,117400.0,0.29496246]
[1754732148887,0.93816427,117410.0,117400.0,0.29496246]
[1754732151082,1.19670307,117410.0,117400.0,0.29496246]
[1754732152190,0.93816427,117410.0,117400.0,0.29496246]
[1754732153690,0.93816427,117410.0,117400.0,0.27779246]
[1754732154891,1.19670307,117410.0,117400.0,0.27779246]
[1754732155491,1.19670307,117410.0,117400.0,0.26226246]
[1754732155691,1.19670307,117410.0,117400.0,0.22046246]
[1754732157490,0.93816427,117410.0,117400.0,0.23763246]
[1754732159196,0.67962547,117410.0,117400.0,0.23763246]
[1754732159391,0.93816427,117410.0,117400.0,0.23763246]
[1754732163492,0.93816427,117410.0,117400.0,0.27943246]
[1754732169194,0.93816427,117410.0,117400.0,0.26226246]
[1754732171595,0.93816427,117410.0,117400.0,0.22046246]
[1754732171795,0.93816427,117410.0,117400.0,0.18610246]
[1754732172195,1.19670307,117410.0,117400.0,0.18610246]
[1754732176603,1.19670307,117410.0,117400.0,0.21883246]
[1754732177003,0.93816427,117410.0,117400.0,0.21883246]
[1754732178505,1.19670307,117410.0,117400.0,0.21883246]
[1754732179604,0.93816427,117410.0,117400.0,0.21883246]
[1754732181622,0.67962547,117410.0,117400.0,0.21883246]
[1754732181924,0.93816427,117410.0,117400.0,0.21883246]
[1754732182821,0.67962547,117410.0,117400.0,0.21883246]
[1754732183013,0.93816427,117410.0,117400.0,0.21883246]
[1754732185815,0.95696721,117410.0,117400.0,0.21883246]
[1754732190524,0.69842841,117410.0,117400.0,0.21883246]
[1754732190723,0.95696721,117410.0,117400.0,0.21883246]
[1754732192327,0.95696721,117410.0,117400.0,0.23476246]
[1754732192625,0.95696721,117410.0,117400.0,0.27731246]
[1754732192827,0.9569671,117410.0,117400.0,0.27731246]
[1754732193029,0.6984283,117410.0,117400.0,0.27731246]
[1754732193525,0.9569671,117410.0,117400.0,0.27731246]
[1754732193728,0.08675,117410.0,117400.0,1.19736006]
[1754732194027,0.02894,117410.0,117400.0,1.19736006]
[1754732194417,0.14866,117420.0,117410.0,0.1431355]
[1754732194617,0.12532,117420.0,117410.0,1.2561543]
[1754732194920,0.3838588,117420.0,117410.0,1.2561543]
[1754732195222,0.4071988,117420.0,117410.0,1.2561543]
[1754732198428,0.4071988,117420.0,117410.0,1.6169543]
[1754732203034,0.4071988,117420.0,117410.0,0.8378743]
[1754732203226,0.4071988,117420.0,117410.0,1.6167543]
[1754732204737,0.7508859,117420.0,117410.0,1.6167543]
[1754732205033,0.7508859,117420.0,117410.0,1.3582155]
[1754732206137,0.7508859,117420.0,117410.0,1.6167543]
[1754732206639,0.6657376,117420.0,117410.0,1.6167543]
[1754732206834,0.7508858,117420.0,117410.0,1.6167543]
[1754732208344,0.6657376,117420.0,117410.0,1.6167543]
[1754732208540,0.7508858,117420.0,117410.0,1.5900143]
[1754732209030,0.7508858,117420.0,117410.0,1.6162743]
[1754732209534,0.7508858,117420.0,117410.0,1.3576155]
[1754732209734,0.7508858,117420.0,117410.0,1.6161543]
[1754732210629,0.6657376,117420.0,117410.0,1.6161543]
[1754732210937,0.7508858,117420.0,117410.0,1.6161543]
[1754732212238,0.14866,117420.0,117410.0,1.6161543]
[1754732212538,0.4071988,117420.0,117410.0,1.6161543]
[1754732213236,0.492347,117420.0,117410.0,1.6161543]
[1754732216033,0.492347,117420.0,117410.0,1.3576155]
[1754732216233,0.492347,117420.0,117410.0,1.6161543]
[1754732220143,0.14866,117420.0,117410.0,1.6161543]
[1754732220535,0.4071988,117420.0,117410.0,1.6161543]
[1754732220841,0.3508588,117420.0,117410.0,1.6161543]
[1754732222743,0.09232,117420.0,117410.0,1.6161543]
[1754732222943,0.3508588,117420.0,117410.0,1.6161543]
[1754732223244,0.07056,117420.0,117410.0,1.6161543]
[1754732223447,0.3290988,117420.0,117410.0,1.69240506]
[1754732223631,0.3290988,117420.0,117410.0,1.33160506]
[1754732224039,0.3290988,117420.0,117410.0,1.69240506]
[1754732224646,0.3849788,117420.0,117410.0,1.69240506]
[1754732225052,0.12644,117420.0,117410.0,1.69240506]
[1754732225241,0.3849788,117420.0,117410.0,1.69240506]
[1754732225844,0.4079388,117420.0,117410.0,1.69240506]
[1754732226046,0.4930871,117420.0,117410.0,1.69240506]
[1754732226248,0.7516259,117420.0,117410.0,1.69240506]
[1754732226446,0.7516259,117420.0,117410.0,1.43386626]
[1754732226646,0.7516259,117420.0,117410.0,1.69240506]
[1754732226942,1.3709647,117420.0,117410.0,0.77876]
[1754732227141,0.2236156,117410.0,117400.0,0.67612891]
[1754732227447,0.83185164,117410.0,117400.0,1.23167996]
[1754732227847,0.57331284,117410.0,117400.0,1.26527996]
[1754732228041,0.57331284,117410.0,117400.0,1.30521996]
[1754732230548,0.57331284,117410.0,117400.0,1.27998996]
[1754732230751,0.93411284,117410.0,117400.0,1.27998996]
[1754732231549,0.93411284,117410.0,117400.0,1.01288996]
[1754732231751,0.93411284,117410.0,117400.0,1.03811996]
[1754732232751,0.93411284,117410.0,117400.0,1.01288996]
[1754732236961,1.19265164,117410.0,117400.0,1.01288996]
[1754732237252,0.93411284,117410.0,117400.0,1.01288996]
[1754732237554,0.93411284,117410.0,117400.0,0.29099996]
[1754732237758,0.93411284,117410.0,117400.0,1.06943996]
[1754732238442,0.57331284,117410.0,117400.0,1.06943996]
[1754732238745,0.93411284,117410.0,117400.0,1.06943996]
[1754732239848,1.19265164,117410.0,117400.0,0.29099996]
[1754732240155,1.19265164,117410.0,117400.0,1.06943996]
[1754732241150,1.19265164,117410.0,117400.0,0.29099996]
[1754732241354,1.19265164,117410.0,117400.0,0.96449996]
[1754732241854,1.19265164,117410.0,117400.0,0.99809996]
[1754732242059,1.19265164,117410.0,117400.0,1.01280996]
[1754732242651,0.93411284,117410.0,117400.0,1.03803996]
[1754732243044,0.57331284,117410.0,117400.0,1.03803996]
[1754732243455,0.93411284,117410.0,117400.0,1.03803996]
[1754732244054,0.92551284,117410.0,117400.0,1.03803996]
[1754732244655,0.56471284,117410.0,117400.0,1.03803996]
[1754732245351,0.92551284,117410.0,117400.0,1.03803996]
[1754732245550,1.18405164,117410.0,117400.0,1.03803996]
[1754732245947,0.92551284,117410.0,117400.0,1.03803996]
[1754732246147,0.56471284,117410.0,117400.0,1.09458996]
[1754732246349,0.56471284,117410.0,117400.0,1.35312876]
[1754732246665,0.56471284,117410.0,117400.0,1.09458996]
[1754732246954,0.56471284,117410.0,117400.0,1.35312876]
[1754732247856,0.56471284,117410.0,117400.0,1.09458996]
[1754732248057,0.56471284,117410.0,117400.0,1.35312876]
[1754732249456,0.56471284,117410.0,117400.0,1.09458996]
[1754732251762,0.56471284,117410.0,117400.0,0.31622996]
[1754732251962,0.56471284,117410.0,117400.0,1.09450996]
[1754732252253,0.05471,117390.0,117380.0,0.3554033]
[1754732252561,0.7407076,117390.0,117380.0,1.16803286]
[1754732252757,0.7407076,117390.0,117380.0,1.08285876]
[1754732253156,1.19719154,117390.0,117380.0,0.91251536]
[1754732253351,1.19719154,117390.0,117380.0,0.80761536]
[1754732253557,1.19719154,117390.0,117380.0,0.81061536]
[1754732254457,1.19719154,117390.0,117380.0,0.89579266]
[1754732254661,1.02529365,117390.0,117380.0,0.005]
[1754732255161,1.02529365,117390.0,117380.0,0.0901773]
[1754732255562,1.02529365,117390.0,117380.0,0.1237773]
[1754732255760,1.02529365,117390.0,117380.0,0.1798073]
[1754732258466,1.02529365,117390.0,117380.0,0.20908382]
[1754732259664,1.02529365,117390.0,117380.0,0.0901773]
[1754732260162,1.02529365,117390.0,117380.0,0.1225773]
[1754732261560,1.02529365,117390.0,117380.0,0.1764673]
[1754732262064,1.02529365,117390.0,117380.0,0.20203048]
[1754732265468,0.68011394,117390.0,117380.0,0.11574048]
[1754732265669,0.66449365,117390.0,117380.0,0.24108048]
[1754732265868,0.6163017,117400.0,117380.0,0.71025999]
[1754732266064,0.7562417,117400.0,117390.0,0.21051]
[1754732266258,0.7562417,117400.0,117390.0,0.98871]
[1754732267069,1.10142141,117400.0,117390.0,0.98871]
[1754732267565,1.10142141,117400.0,117390.0,0.21251]
[1754732268671,1.10142141,117400.0,117390.0,0.21351]
[1754732269872,1.10142141,117400.0,117390.0,0.18924]
[1754732276373,1.10142141,117400.0,117390.0,0.21351]
[1754732276875,1.27376818,117400.0,117390.0,0.21351]
[1754732277170,0.92983494,117400.0,117390.0,0.44800324]
[1754732277369,0.48386594,117400.0,117390.0,0.83307324]
[1754732277570,0.42730614,117400.0,117390.0,0.83307324]
[1754732277772,0.48386614,117400.0,117390.0,0.83307324]
[1754732277971,0.2251029,117400.0,117390.0,0.83307324]
[1754732278169,0.48386614,117400.0,117390.0,0.83307324]
[1754732278776,0.2251029,117400.0,117390.0,0.57431]
[1754732281077,0.08338,117400.0,117390.0,0.57431]
[1754732281279,0.02814,117400.0,117390.0,0.91928647]
[1754732281981,0.11839,117400.0,117390.0,0.91928647]
[1754732282169,0.11839,117400.0,117390.0,0.57431]
[1754732283576,0.2035529,117400.0,117390.0,0.57431]
[1754732283878,0.13994,117400.0,117390.0,0.57431]
[1754732285181,0.2251029,117400.0,117390.0,0.57431]
[1754732285583,0.13994,117400.0,117390.0,0.57431]
[1754732286782,0.06183,117400.0,117390.0,0.57431]
[1754732287081,0.06183,117400.0,117390.0,0.91928647]
[1754732287474,0.06183,117400.0,117390.0,0.57431]
[1754732287875,0.11727,117400.0,117390.0,0.57431]
[1754732288679,0.42622647,117410.0,117390.0,0.6740251]
[1754732288883,0.51023197,117410.0,117400.0,0.2112927]
[1754732289086,0.56567197,117410.0,117400.0,0.2112927]
[1754732289784,0.56567197,117410.0,117400.0,0.1880127]
[1754732290479,0.2206955,117410.0,117400.0,0.1880127]
[1754732290679,0.56567197,117410.0,117400.0,0.1880127]
[1754732299890,0.56567197,117410.0,117400.0,0.0851627]
[1754732300090,0.56567197,117410.0,117400.0,0.1198127]
[1754732300691,0.47942442,117410.0,117400.0,0.1198127]
[1754732300893,0.47942442,117410.0,117400.0,0.1329627]
[1754732301088,0.47942442,117410.0,117400.0,0.1880127]
[1754732307600,0.47942442,117410.0,117400.0,0.44674162]
[1754732307993,0.47942442,117410.0,117400.0,0.1880127]
[1754732308397,0.47942442,117410.0,117400.0,0.9656527]
[1754732311305,0.2206955,117410.0,117400.0,1.22438162]
[1754732311601,0.47942442,117410.0,117400.0,1.22438162]
[1754732312302,0.47942442,117410.0,117400.0,0.9656527]
[1754732315404,0.47942442,117410.0,117400.0,1.24766162]
[1754732318305,0.47942442,117410.0,117400.0,0.9889327]
[1754732318604,0.48382442,117410.0,117400.0,1.24766162]
[1754732319704,0.48382442,117410.0,117400.0,0.9889327]
[1754732319902,0.48382442,117410.0,117400.0,1.24766162]
[1754732322605,0.48382442,117410.0,117400.0,0.9889327]
[1754732322808,0.48382442,117410.0,117400.0,1.24766162]
[1754732323807,0.2250955,117410.0,117400.0,1.24766162]
[1754732323998,0.48382442,117410.0,117400.0,1.24766162]
[1754732324596,0.50255119,117410.0,117400.0,1.24766162]
[1754732325206,0.48382442,117410.0,117400.0,1.24766162]
[1754732325612,0.48382442,117410.0,117400.0,0.9889327]
[1754732325806,0.50255119,117410.0,117400.0,1.24766162]
[1754732329115,0.48382442,117410.0,117400.0,1.24766162]
[1754732329411,0.5025253,117410.0,117400.0,1.24766162]
[1754732329612,0.5025253,117410.0,117400.0,0.9889327]
[1754732329813,0.5025253,117410.0,117400.0,1.24766162]
[1754732331908,0.48382442,117410.0,117400.0,1.24766162]
[1754732332311,0.2250955,117410.0,117400.0,1.24766162]
[1754732332510,0.48382442,117410.0,117400.0,1.24766162]
[1754732334218,0.50252548,117410.0,117400.0,1.24766162]
[1754732334412,0.50252548,117410.0,117400.0,0.9889327]
[1754732334607,0.48382442,117410.0,117400.0,1.24766162]
[1754732337016,0.47942442,117410.0,117400.0,1.24766162]
[1754732339621,0.47942442,117410.0,117400.0,0.9889327]
[1754732339820,0.47942442,117410.0,117400.0,1.24766162]
[1754732342322,0.48382442,117410.0,117400.0,0.9889327]
[1754732342521,0.48382442,117410.0,117400.0,1.24766162]
[1754732343421,0.48382442,117410.0,117400.0,0.9889327]
[1754732343616,0.48382442,117410.0,117400.0,1.24766162]
[1754732344927,0.48382442,117410.0,117400.0,0.9889327]
[1754732345125,0.48382442,117410.0,117400.0,1.24766162]
[1754732346420,0.34828442,117410.0,117400.0,1.24766162]
[1754732346625,0.37529442,117410.0,117400.0,1.24766162]
[1754732346826,0.42760442,117410.0,117400.0,1.24766162]
[1754732347027,0.48103442,117410.0,117400.0,1.24766162]
[1754732347626,0.39587892,117410.0,117400.0,1.24766162]
[1754732348627,0.48103442,117410.0,117400.0,1.24766162]
[1754732348926,0.39587892,117410.0,117400.0,1.24766162]
[1754732350329,0.48103442,117410.0,117400.0,1.24766162]
[1754732350524,0.48103442,117410.0,117400.0,0.9889327]
[1754732350829,0.48103442,117410.0,117400.0,1.24766162]
[1754732352629,0.48103442,117410.0,117400.0,0.9889327]
[1754732352833,0.48103442,117410.0,117400.0,1.24766162]
[1754732353127,0.39587892,117410.0,117400.0,1.24766162]
[1754732354533,0.48103452,117410.0,117400.0,1.24766162]
[1754732356233,0.39587892,117410.0,117400.0,1.24766162]
[1754732358039,0.48103442,117410.0,117400.0,1.24766162]
[1754732358536,0.39587892,117410.0,117400.0,1.24766162]
[1754732359134,0.48103442,117410.0,117400.0,1.24766162]
[1754732359335,0.48103442,117410.0,117400.0,0.9889327]
[1754732359743,0.48103442,117410.0,117400.0,1.24766162]
[1754732360843,0.48103442,117410.0,117400.0,0.9889327]
[1754732361042,0.48103442,117410.0,117400.0,1.24766162]
[1754732361342,0.48103442,117410.0,117400.0,0.9889327]
[1754732361543,0.48103442,117410.0,117400.0,1.24766162]
[1754732362542,0.2223055,117410.0,117400.0,1.24766162]
[1754732362742,0.48103442,117410.0,117400.0,1.24766162]
[1754732365745,0.47663442,117410.0,117400.0,1.24766162]
[1754732368844,0.39147892,117410.0,117400.0,1.24766162]
[1754732369040,0.47663442,117410.0,117400.0,1.24766162]
[1754732372151,0.47663442,117410.0,117400.0,0.9889327]
[1754732372346,0.48103442,117410.0,117400.0,1.24766162]
[1754732373851,0.48103442,117410.0,117400.0,0.9889327]
[1754732374051,0.48103442,117410.0,117400.0,1.24766162]
[1754732374549,0.49972724,117410.0,117400.0,1.24766162]
[1754732379455,0.48103442,117410.0,117400.0,1.24766162]
[1754732381262,0.48103442,117410.0,117400.0,0.9889327]
[1754732381556,0.48103442,117410.0,117400.0,1.24766162]
[1754732382457,0.4997264,117410.0,117400.0,1.24766162]
[1754732383658,0.48103442,117410.0,117400.0,1.24766162]
[1754732384756,0.2223055,117410.0,117400.0,0.9889327]
[1754732384950,0.48103442,117410.0,117400.0,1.24766162]
[1754732396062,0.2223055,117410.0,117400.0,1.24766162]
[1754732396266,0.48103442,117410.0,117400.0,1.24766162]
[1754732396869,0.2223055,117410.0,117400.0,1.24766162]
[1754732397067,0.48103442,117410.0,117400.0,1.24766162]
[1754732398767,0.39587892,117410.0,117400.0,1.24766162]
[1754732399168,0.48103442,117410.0,117400.0,1.24766162]
[1754732401568,0.0044,117410.0,117400.0,1.26648635]
[1754732401765,0.03059,117410.0,117400.0,1.52521527]
[1754732401970,0.02619,117420.0,117410.0,0.10512]
[1754732402269,0.02619,117420.0,117410.0,0.46202442]
[1754732402563,0.6203355,117430.0,117410.0,0.3736018]
[1754732402767,0.76465002,117430.0,117420.0,1.23889722]
[1754732402966,0.82005002,117430.0,117420.0,1.23889722]
[1754732403168,0.84261002,117430.0,117420.0,1.23889722]
[1754732403759,0.73496002,117430.0,117420.0,1.23889722]
[1754732404369,0.3649,117430.0,117420.0,1.51689731]
[1754732404569,0.39109,117430.0,117420.0,1.25816839]
[1754732404763,0.64981892,117430.0,117420.0,1.25816839]